[Event "Prague Festival Open 2022"]
[Site "Prague"]
[Date "2022.06.17"]
[Round "9.9"]
[White "Omelja, Artem"]
[Black "Zylka, Stanislaw"]
[Result "0-1"]
[ECO "A11"]
[WhiteElo "2515"]
[BlackElo "2374"]
[Annotator "TA"]
[PlyCount "70"]
[EventDate "2022.06.10"]
[EventType "swiss"]
[EventCountry "CZE"]
[SourceTitle "playchess.com"]
[Source "ChessBase"]
[SourceQuality "1"]
[TimeControl "40/5400+30:1800+30"]

{[%evp 10,70,30,4,35,41,62,35,64,58,62,12,63,23,32,31,27,38,49,48,61,47,71,65,51,48,70,69,99,98,83,98,94,79,116,108,138,46,46,51,57,-22,24,0,0,0,0,0,0,0,0,8,6,-494,-460,-1040,-975,-1851,-1530,-2059,-2047,-2266,-2050]} 1. Nf3 {[%emt 0:04:16]} d5 {[%emt 0:00:13]} 2. e3 {[%emt 0:00:25]} Nf6 {[%emt 0:00:42]} 3. c4 {[%emt 0:00:16]} e6 {[%emt 0:02:01]} 4. b3 {[%emt 0:00:07]} Nbd7 {[%emt 0:05:35]} 5. Bb2 {[%emt 0:00:26]} c6 {[%emt 0:01:15]} 6. Nc3 {[%emt 0:00:17]} a6 {[%emt 0:03:13] A11: English Opening: 1...c6.} 7. d4 {[%emt 0:00:19]} b5 {[%emt 0:02:22]} 8. Bd3 {[%emt 0:00:52]} (8. cxb5 axb5 9. a3 Bd6 $11) 8... Be7 {[%emt 0:09:19] White is slightly better.} 9. O-O {[%emt 0:00:16]} ({Much weaker is} 9. cxb5 axb5 10. a3 O-O $11) 9... O-O {[%emt 0:00:53]} 10. Qc2 {[%emt 0:03:28]} (10. c5 $14) 10... h6 {[%emt 0:01:03]} (10... bxc4 $11 11. bxc4 dxc4 12. Bxc4 c5) 11. e4 {[%emt 0:02:20]} b4 {[%emt 0:02:28]} 12. Na4 {[%emt 0:00:12]} dxe4 {[%emt 0:00:56]} 13. Bxe4 {[%emt 0:00:06] [#]} Bb7 $146 {[%emt 0:02:01]} ({Predecessor:} 13... Nxe4 14. Qxe4 Qc7 15. Rad1 Bb7 16. Qe3 Rfe8 17. Rd2 Rad8 18. Rfd1 c5 19. Nxc5 Nxc5 20. dxc5 Bxc5 {½-½ (33) Tunik,G (2475)-Burmakin,V (2535) Moscow 1996}) 14. Ne5 {[%emt 0:01:46]} Nxe5 {[%emt 0:01:13]} 15. dxe5 {[%emt 0:00:13]} Nxe4 {[%emt 0:00:04]} 16. Qxe4 {[%emt 0:00:08]} Qc7 {[%emt 0:00:32]} 17. c5 $1 {[%emt 0:07:18]} Qa5 {[%emt 0:14:04]} 18. Rac1 {[%emt 0:05:48]} Qb5 {[%emt 0:07:56]} 19. Rc4 {[%emt 0:00:52]} a5 {[%emt 0:00:14]} 20. Rd1 {[%emt 0:06:20]} Rad8 {[%emt 0:03:40] [#]} 21. Rd6 {[%emt 0:00:24]} Ba6 {[%emt 0:07:49] [#]} (21... Qa6 22. Nb6) 22. Nb6 $1 {[%emt 0:20:01]} f6 {[%emt 0:04:42] [#]} (22... Bc8 23. Bd4) 23. h4 {[%emt 0:05:39]} Bxd6 $14 {[%emt 0:03:10]} 24. exd6 {[%emt 0:00:09]} e5 {[%emt 0:00:22][%cal Be6e5,Be5f4,Bf4f3,Bf3f2][%mdl 32]} 25. Qe3 {[%emt 0:03:13]} (25. Bc1 $1 $14) 25... h5 {[%emt 0:02:14]} (25... Bc8 {is more appropriate.}) 26. f4 {[%emt 0:01:02]} exf4 {[%emt 0:06:05]} 27. Qe6+ {[%emt 0:00:38]} Kh8 {[%emt 0:01:24]} 28. d7 {[%emt 0:00:27] Bc1 is the strong threat.} a4 $1 {[%emt 0:00:38]} 29. Qe7 {[%emt 0:20:08]} axb3 $1 {[%emt 0:00:57]} 30. axb3 {[%emt 0:00:06]} f3 $1 {[%emt 0:01:08]} 31. g4 $2 {[%emt 0:06:16][%mdl 8192] [#] This move loses the game for White.} (31. gxf3 $11 {and White is okay.} Qa5 32. Rc2 (32. Rc1 $2 Qa2 $19)) 31... Qa5 $1 $19 {[%emt 0:04:35] Black is clearly winning.} (31... hxg4 32. Kf2 Rg8 33. h5 $18) 32. Bxf6 {[%emt 0:05:58]} (32. Rc2 $142 hxg4 33. Qe3) 32... f2+ {[%emt 0:01:58]} 33. Kf1 {[%emt 0:00:44]} gxf6 {[%emt 0:00:19]} 34. Qe3 {[%emt 0:00:16]} Bxc4+ {[%emt 0:01:03]} 35. bxc4 {[%emt 0:02:17]} Qa1+ {[%emt 0:00:29] Weighted Error Value: White=0.81/Black=0.12 (very precise)} 0-1

[Event "Prague Festival Open 2022"]
[Site "Prague"]
[Date "2022.06.17"]
[Round "9.10"]
[White "Sedlak, Nikola"]
[Black "Molenda, Marcin"]
[Result "1/2-1/2"]
[ECO "A30"]
[WhiteElo "2476"]
[BlackElo "2368"]
[Annotator "TA"]
[PlyCount "111"]
[EventDate "2022.06.10"]
[EventType "swiss"]
[EventCountry "CZE"]
[SourceTitle "playchess.com"]
[Source "ChessBase"]
[SourceQuality "1"]
[TimeControl "40/5400+30:1800+30"]

{[%evp 15,111,2,1,0,0,0,26,15,17,14,46,53,32,36,30,31,31,37,47,37,50,47,44,57,62,72,96,98,81,86,103,68,79,39,41,16,17,16,34,14,16,19,14,8,10,18,25,14,14,14,14,25,72,69,83,0,171,15,12,12,12,8,8,8,8,14,14,14,14,16,49,41,41,41,41,41,49,49,49,49,49,49,49,41,41,41,41,41,41,41,41,41,41,41,41,41,41,8]} 1. Nf3 {[%emt 0:00:04]} Nf6 {[%emt 0:00:12]} 2. g3 {[%emt 0:00:11]} g6 {[%emt 0:01:30]} 3. b3 {[%emt 0:00:09]} c5 {[%emt 0:01:04]} 4. c4 {[%emt 0:00:26]} Bg7 {[%emt 0:00:55]} 5. Bb2 {[%emt 0:00:08]} b6 {[%emt 0:01:06]} 6. Bg2 {[%emt 0:00:23]} Bb7 {[%emt 0:00:05]} 7. O-O {[%emt 0:00:07]} O-O {[%emt 0:00:09]} 8. e3 {[%emt 0:02:28]} d5 {[%emt 0:04:58]} 9. cxd5 {[%emt 0:04:41] A30: Symmetrical English: Double Fianchetto and Hedgehog.} Qxd5 {[%emt 0:04:13]} 10. Nc3 {[%emt 0:03:05]} Qd8 {[%emt 0:05:58]} 11. d4 {[%emt 0:02:25] White has an edge.} cxd4 {[%emt 0:00:28]} 12. Nxd4 {[%emt 0:00:08]} Bxg2 {[%emt 0:00:12]} 13. Kxg2 {[%emt 0:00:07]} a6 {[%emt 0:16:04]} 14. Qf3 {[%emt 0:02:53]} Ra7 {[%emt 0:00:08] [#]} 15. Rfd1 $146 {[%emt 0:02:24][%cal Od4e6][%mdl 2048] Black must now prevent Ne6! White is more active.} ({Predecessor:} 15. a4 Rd7 16. Rfd1 Qc7 17. Rac1 Qb7 18. Qxb7 Rxb7 19. b4 e5 20. Nf3 Re8 21. b5 {1-0 (60) Goban,M (2108)-Mrva,V (2063) Slovakia 2018}) 15... Rd7 {[%emt 0:00:13]} 16. Rac1 {[%emt 0:01:26]} b5 {[%emt 0:03:19]} 17. a4 {[%emt 0:12:13]} bxa4 {[%emt 0:16:46]} 18. Nxa4 {[%emt 0:00:22] Nc5 is the strong threat.} e5 {[%emt 0:08:52]} 19. Nc2 {[%emt 0:00:18]} e4 {[%emt 0:02:30]} 20. Qe2 {[%emt 0:00:07] White is more active.} Nd5 {[%emt 0:04:10]} 21. Bxg7 {[%emt 0:13:31]} Kxg7 {[%emt 0:00:17]} 22. Nd4 {[%emt 0:01:10]} Qf6 {[%emt 0:01:46]} 23. Qg4 {[%emt 0:07:32]} Re8 {[%emt 0:01:18]} 24. h4 {[%emt 0:05:41]} (24. Nc5 $5 {[%cal Rc5d7]} Rde7 25. Kg1 $14) 24... h5 {[%emt 0:05:35]} 25. Qg5 {[%emt 0:00:43]} Qxg5 {[%emt 0:01:41]} 26. hxg5 {[%emt 0:00:06]} Nb4 {[%emt 0:00:20]} 27. Nc5 {[%emt 0:02:03][%cal Od4e6] aiming for Nde6+!} Rd5 {[%emt 0:00:05]} 28. Rc4 {[%emt 0:00:42]} N4c6 {[%emt 0:08:17] [#]} 29. Nxa6 $1 {[%emt 0:02:59]} Nxa6 {[%emt 0:01:29]} (29... Nxd4 $2 30. Nc7 Red8 31. Nxd5 $18 (31. Rcxd4 Rxd4 32. Rxd4 Rxd4 $16) (31. exd4 Rxg5 32. Re1 Rg4 $14) (31. Rdxd4 Rxd4 32. exd4 Kf8 $16)) 30. Rxc6 {[%emt 0:00:27]} Nb4 {[%emt 0:00:07]} 31. Rb6 {[%emt 0:05:14]} Nd3 {[%emt 0:00:11]} 32. Ra1 {[%emt 0:04:36]} Rxg5 {[%emt 0:01:12]} 33. Ra7 {[%emt 0:00:04]} Kg8 {[%emt 0:05:56]} (33... Rd5 $11) 34. Rbb7 $16 {[%emt 0:00:50]} Ne5 {[%emt 0:00:20]} 35. Re7 {[%emt 0:01:39]} ({White should try} 35. Nb5 $16) 35... Rc8 $2 {[%emt 0:04:43]} (35... Rxe7 $11 {and Black has nothing to worry.} 36. Rxe7 Kf8) 36. Ra5 $2 {[%emt 0:01:36]} (36. b4 $18) 36... Nf3 $1 $11 {[%emt 0:00:29]} 37. Rxg5 {[%emt 0:00:15]} Nxg5 {[%emt 0:00:01][%mdl 4096] Endgame KRN-KRN} 38. b4 {[%emt 0:01:41][%cal Bb3b4,Bb4b5][%mdl 32]} Rb8 {[%emt 0:00:36]} 39. Re5 {[%emt 0:01:02]} f6 {[%emt 0:01:30]} 40. Rb5 {[%emt 0:00:07]} Rxb5 {[%emt 0:00:10]} 41. Nxb5 {[%emt 0:30:07] KN-KN} Kf7 {[%emt 0:01:38]} 42. Nc3 {[%emt 0:00:00]} Ke6 {[%emt 0:00:52]} 43. b5 {[%emt 0:00:00] White is slightly better.} Kd6 {[%emt 0:00:47]} 44. b6 {[%emt 0:00:00][%cal Oc3d5]} Kc6 {[%emt 0:08:33] [#]} 45. Nd5 $1 {[%emt 0:00:00]} Nh7 {[%emt 0:01:01]} (45... Kxd5 $2 46. b7 $18) (45... f5 46. Ne7+) 46. Ne7+ {[%emt 0:00:00]} Kxb6 {[%emt 0:00:06]} 47. Nxg6 {[%emt 0:00:00]} Kc5 {[%emt 0:01:05]} 48. Nf4 {[%emt 0:00:00]} Kd6 {[%emt 0:00:42]} 49. Nxh5 {[%emt 0:00:00]} f5 {[%emt 0:02:14]} 50. g4 {[%emt 0:00:00]} fxg4 {[%emt 0:00:22]} 51. Kg3 {[%emt 0:00:00] Strongly threatening Kf4.} Ke5 {[%emt 0:00:08]} 52. Kxg4 {[%emt 0:00:00]} Nf8 {[%emt 0:00:20]} 53. Nf4 {[%emt 0:00:00]} Nd7 {[%emt 0:01:50]} 54. Kg5 {[%emt 0:00:00]} Nc5 {[%emt 0:00:19]} 55. Ng6+ {[%emt 0:00:00]} Ke6 {[%emt 0:00:13]} 56. Kf4 {[%emt 0:00:00] Weighted Error Value: White=0.12 (very precise) /Black=0.13 (very precise)} 1/2-1/2

[Event "Prague Festival Open 2022"]
[Site "Prague"]
[Date "2022.06.17"]
[Round "9.11"]
[White "Suarez Uriel, Adrian"]
[Black "Garcia Ramos, Daniel"]
[Result "1/2-1/2"]
[ECO "B14"]
[WhiteElo "2370"]
[BlackElo "2441"]
[Annotator "TA"]
[PlyCount "199"]
[EventDate "2022.06.10"]
[EventType "swiss"]
[EventCountry "CZE"]
[SourceTitle "playchess.com"]
[Source "ChessBase"]
[SourceQuality "1"]
[TimeControl "40/5400+30:1800+30"]

{[%evp 25,199,0,22,12,44,32,38,35,46,27,51,27,56,48,41,18,27,-26,9,0,9,0,30,23,33,-6,0,-47,0,0,0,0,0,0,0,0,0,0,0,-2,-2,-84,-20,-18,0,-17,-21,-34,0,-44,0,0,0,-71,-31,-91,0,0,0,-207,-185,-207,-92,-88,-79,-92,-92,-92,-92,-92,-92,-92,-100,-100,-72,-77,-16,-170,-197,-203,-159,-154,-154,-139,-89,-81,-70,-74,-84,-95,-90,-93,-83,-78,-43,-144,-159,-149,-76,-114,-67,-52,-59,-117,0,0,0,0,0,0,0,0,0,0,0,0,0,0,0,0,0,0,0,0,0,0,0,0,0,0,0,0,0,-8,-8,-8,-8,-8,-8,-8,0,0,0,0,0,0,-4,-11,0,0,0,0,0,0,0,0,0,0,0,0,0,0,0,0,0,0,0,0,0,0,0,0,0,0,0,0]} 1. e4 {[%emt 0:03:04]} c6 {[%emt 0:00:06]} 2. d4 {[%emt 0:00:04]} d5 {[%emt 0:00:08]} 3. exd5 {[%emt 0:00:05]} cxd5 {[%emt 0:00:05]} 4. c4 {[%emt 0:00:04]} Nf6 {[%emt 0:00:27]} 5. Nc3 {[%emt 0:00:04]} e6 {[%emt 0:00:29]} 6. Nf3 {[%emt 0:00:05]} Bb4 {[%emt 0:00:30]} 7. cxd5 {[%emt 0:00:13]} Nxd5 {[%emt 0:00:34]} 8. Qc2 {[%emt 0:00:05]} h6 {[%emt 0:09:08]} 9. Bd3 {[%emt 0:01:30]} O-O {[%emt 0:00:14]} 10. O-O {[%emt 0:00:09]} Nc6 {[%emt 0:01:36]} 11. a3 {[%emt 0:13:04]} Bd6 {[%emt 0:07:54]} 12. Rd1 {[%emt 0:03:03]} Re8 {[%emt 0:04:05]} 13. Qe2 {[%emt 0:08:04]} Bd7 {[%emt 0:07:30]} 14. Bc2 {[%emt 0:03:55]} Qe7 {[%emt 0:22:57]} 15. Ne5 {[%emt 0:05:19]} Rad8 {[%emt 0:03:23]} 16. Qd3 {[%emt 0:16:52]} f5 {[%emt 0:00:10]} 17. Nxd5 {[%emt 0:09:06]} exd5 {[%emt 0:00:02]} 18. Nf3 {[%emt 0:03:43]} Bb8 {[%emt 0:02:14]} 19. Bd2 {[%emt 0:01:21]} Qf6 {[%emt 0:04:38]} 20. b4 {[%emt 0:02:29]} Re4 {[%emt 0:12:55]} 21. Be3 {[%emt 0:02:47]} ({White should play} 21. Bc3) 21... Be6 {[%emt 0:10:43]} 22. Nd2 {[%emt 0:12:20]} Rg4 {[%emt 0:02:33]} 23. h3 {[%emt 0:00:19]} Rh4 {[%emt 0:00:55]} 24. Nf3 {[%emt 0:01:48]} Re4 {[%emt 0:00:01]} 25. b5 {[%emt 0:03:03]} (25. Rac1 $5 {[%cal Rb4b5]}) 25... Na5 {[%emt 0:01:45]} 26. Qc3 {[%emt 0:00:23] [#]} (26. Re1 $11 {was preferrable.}) 26... Rc8 {[%emt 0:00:36]} (26... Nc4 $1 $15) 27. Qxa5 $11 {[%emt 0:01:39]} Rxc2 {[%emt 0:00:01]} 28. Rac1 {[%emt 0:01:13]} Rxc1 {[%emt 0:00:03]} 29. Rxc1 {[%emt 0:00:05]} f4 {[%emt 0:00:39]} 30. Bd2 {[%emt 0:00:06]} Kh7 {[%emt 0:01:46]} 31. b6 {[%emt 0:00:54]} a6 {[%emt 0:00:50]} 32. Qa4 {[%emt 0:01:21]} Bf5 {[%emt 0:00:35]} 33. Rc5 {[%emt 0:00:17]} (33. Qb3 $11 {remains equal.}) 33... Re2 {[%emt 0:04:03]} (33... Qxb6 $17 34. Qd1 Qe6) 34. Qd1 $11 {[%emt 0:01:55]} Qe6 {[%emt 0:00:06]} 35. Ne5 {[%emt 0:04:30]} Re4 {[%emt 0:00:40]} 36. Nf3 {[%emt 0:01:55]} Bg6 {[%emt 0:01:19]} (36... Bd6 $5 {[%cal Rd6c5]} 37. Rc3 Qg6 $15) 37. Qb3 {[%emt 0:00:16]} Bf7 {[%emt 0:01:25]} (37... Bd6 $5 {[%cal Rd6c5]} 38. Rc3 (38. Rxd5 $2 Bf7 $19) 38... Bh5 $17) 38. a4 {[%emt 0:01:16]} Bd6 {[%emt 0:00:16]} 39. Rc1 {[%emt 0:00:10]} (39. Rc7 $11 Bxc7 40. bxc7) 39... Bh5 $1 $17 {[%emt 0:01:22]} 40. Qd3 {[%emt 0:01:19]} (40. a5 $1 $15) 40... Bg6 {[%emt 0:00:25]} (40... Bxf3 $17 41. gxf3 Qg6+ 42. Kh2 Re6 43. Qxg6+ Kxg6) 41. Qb3 $11 {[%emt 0:01:50]} Bh5 {[%emt 0:03:23]} 42. Qc3 $2 {[%emt 0:14:18]} (42. Qd3 $11) 42... Bxf3 $19 {[%emt 0:04:06]} 43. gxf3 {[%emt 0:00:01] [#]} Qg6+ {[%emt 0:00:09]} (43... Qxh3 $1 $19 {and Black stays clearly on top. White must now prevent ...Re6.} 44. Qd3 (44. fxe4 $2 f3 $19) 44... Kg8) 44. Kf1 $17 {[%emt 0:00:09]} Re8 {[%emt 0:01:39]} 45. Qc2 {[%emt 0:00:02]} Qxc2 {[%emt 0:00:16]} 46. Rxc2 {[%emt 0:00:01]} Kg6 {[%emt 0:00:24]} 47. Rc1 {[%emt 0:01:26]} Kf5 {[%emt 0:01:55]} 48. Rc2 {[%emt 0:00:51]} Ke6 {[%emt 0:00:30]} 49. Ke2 {[%emt 0:00:23]} Kd7+ {[%emt 0:00:06]} 50. Kd3 {[%emt 0:00:04]} Re6 {[%emt 0:04:14]} ({Better is} 50... Rc8 $17 {Hoping for ...Rxc2.} 51. Ra2 Rc4) 51. Rc3 $2 {[%emt 0:03:16]} (51. h4 $11 {and White is okay.}) 51... Rg6 $1 $19 {[%emt 0:01:45]} 52. Bc1 {[%emt 0:00:24]} Rg2 {[%emt 0:02:43]} 53. Ke2 {[%emt 0:00:02]} Rg1 $1 {[%emt 0:00:31]} 54. a5 {[%emt 0:04:22]} h5 {[%emt 0:02:21]} (54... g5 $142 $1 55. Ba3 Bxa3 56. Rxa3 Rc1) 55. Ba3 $17 {[%emt 0:01:03]} Bxa3 {[%emt 0:07:25]} 56. Rxa3 {[%emt 0:00:01]} Rc1 {[%emt 0:00:01]} ({Reject} 56... Rh1 57. Rc3 $11) 57. Kd2 {[%emt 0:00:13]} Rc4 $1 {[%emt 0:00:13]} 58. Kd3 {[%emt 0:00:01] [#]} Kc6 $1 {[%emt 0:01:35]} 59. Rb3 {[%emt 0:00:03]} Rc1 {[%emt 0:03:08]} 60. Rb2 {[%emt 0:00:18]} (60. Kd2 $15 Rc4 61. Kd3) 60... Rd1+ $17 {[%emt 0:00:31]} 61. Kc3 {[%emt 0:00:07] [#]} Rh1 {[%emt 0:00:46]} (61... Ra1 $142 $1 {[%cal Ra1a5]} 62. Kb4 Rc1) 62. h4 {[%emt 0:01:49]} Kd6 {[%emt 0:01:39]} (62... g5 $17 63. hxg5 h4) 63. Rc2 $1 $15 {[%emt 0:01:00]} Rxh4 {[%emt 0:01:02]} 64. Kb3 {[%emt 0:08:32]} ({White should try} 64. Kd2 $15) 64... Rh1 {[%emt 0:01:25]} (64... Rh3 $17 65. Rc7 Rxf3+ 66. Kb4 Rxf2 67. Rxb7 Rb2+ 68. Kc3 Rb5 69. Rxg7 Rxa5) 65. Rc7 $11 {[%emt 0:00:40]} h4 {[%emt 0:00:04]} 66. Rxg7 {[%emt 0:01:13]} h3 {[%emt 0:00:06]} 67. Rg6+ {[%emt 0:00:01]} Ke7 {[%emt 0:00:38]} 68. Rg7+ {[%emt 0:00:55]} Kf6 {[%emt 0:00:40]} 69. Rh7 {[%emt 0:00:23]} Kg6 {[%emt 0:00:15]} 70. Rh4 {[%emt 0:00:14]} h2 {[%emt 0:02:10]} 71. Kb2 {[%emt 0:00:01]} Kg5 {[%emt 0:00:36]} 72. Rh7 {[%emt 0:00:07]} Kf6 {[%emt 0:00:13]} 73. Rh6+ {[%emt 0:00:30]} Kg7 {[%emt 0:00:06]} 74. Rh4 {[%emt 0:00:10]} Kg6 {[%emt 0:00:25]} 75. Rh3 {[%emt 0:00:20]} Kf5 {[%emt 0:00:06]} 76. Rh6 {[%emt 0:00:18]} Kg5 {[%emt 0:00:23]} 77. Rh3 {[%emt 0:00:05]} Kf6 {[%emt 0:00:05]} 78. Rh6+ {[%emt 0:00:07]} Ke7 {[%emt 0:00:04]} 79. Rh5 {[%emt 0:00:12]} Kd6 {[%emt 0:00:10]} 80. Rh6+ $1 {[%emt 0:00:06]} Kd7 {[%emt 0:00:04]} 81. Ka2 $1 {[%emt 0:00:03]} Rd1 {[%emt 0:01:47]} 82. Rxh2 {[%emt 0:00:13]} Rxd4 {[%emt 0:00:04]} 83. Kb3 {[%emt 0:01:06]} Kc6 {[%emt 0:00:19]} 84. Rh7 {[%emt 0:00:05]} Kb5 {[%emt 0:00:32]} 85. Rxb7 {[%emt 0:00:57]} Kxa5 {[%emt 0:00:26]} 86. Kc3 {[%emt 0:00:18]} Ra4 {[%emt 0:02:22]} 87. Rb8 {[%emt 0:00:14]} Ra3+ {[%emt 0:00:42]} 88. Kd4 {[%emt 0:00:26]} Rxf3 {[%emt 0:00:14]} 89. Kxd5 {[%emt 0:00:54]} ({Much weaker is} 89. b7 Kb6 90. Kxd5 Rxf2 $15) 89... Rxf2 {[%emt 0:00:05]} 90. Ke4 {[%emt 0:01:48]} Rf1 {[%emt 0:01:22]} 91. b7 {[%emt 0:00:11]} Kb6 {[%emt 0:00:10]} 92. Rf8 {[%emt 0:00:04]} Kxb7 {[%emt 0:00:32]} 93. Rxf4 {[%emt 0:00:04]} Rd1 {[%emt 0:00:17]} 94. Ke3 {[%emt 0:00:05]} Kc6 {[%emt 0:00:29]} 95. Rd4 {[%emt 0:00:06]} Rc1 {[%emt 0:00:19]} (95... Rh1 $5 {[%cal Rc6c5]}) 96. Kd2 {[%emt 0:00:04]} Rc5 {[%emt 0:00:04]} 97. Rd3 {[%emt 0:00:05]} Kb5 {[%emt 0:00:04]} 98. Rc3 {[%emt 0:00:07]} Rh5 {[%emt 0:00:20]} 99. Kc2 {[%emt 0:00:06]} a5 {[%emt 0:00:06]} 100. Kb2 {[%emt 0:00:05]} 1/2-1/2

[Event "Prague Festival Open 2022"]
[Site "Prague"]
[Date "2022.06.17"]
[Round "9.12"]
[White "Raja Harshit"]
[Black "Wagh Suyog"]
[Result "0-1"]
[ECO "B12"]
[WhiteElo "2479"]
[BlackElo "2352"]
[Annotator "TA"]
[PlyCount "78"]
[EventDate "2022.06.10"]
[EventType "swiss"]
[EventCountry "CZE"]
[SourceTitle "playchess.com"]
[Source "ChessBase"]
[SourceQuality "1"]
[TimeControl "40/5400+30:1800+30"]

{[%evp 10,78,0,6,42,-6,40,37,29,42,57,0,0,0,0,0,2,-61,13,16,16,16,41,43,37,37,54,-24,-25,-134,-137,-138,-166,-166,-150,-148,-162,-150,-142,-337,-234,-223,-216,-252,-172,-129,-151,-265,-285,-284,-262,-387,-389,-389,-391,-384,-374,-451,-440,-525,-484,-470,-443,-599,-573,-789,-709,-940,-911,-1118,-833]} 1. e4 {[%emt 0:05:27]} c6 {[%emt 0:00:58]} 2. d4 {[%emt 0:00:18]} d5 {[%emt 0:00:05]} 3. e5 {[%emt 0:00:08]} Bf5 {[%emt 0:00:09]} 4. h4 {[%emt 0:00:10]} h5 {[%emt 0:05:24]} 5. c4 {[%emt 0:02:28][%cal Bc2c4,Bc4c5][%mdl 32]} e6 {[%emt 0:10:37]} 6. Nc3 {[%emt 0:00:10]} Qb6 {[%emt 0:19:37] B12: Caro-Kann: Advance Variation.} 7. Nge2 {[%emt 0:08:01] [#]} (7. c5 $14 Qc7 8. Bd3) 7... Nd7 $146 {[%emt 0:17:41]} (7... dxc4 $11 {should be considered.} 8. Ng3 Bg6) ({Predecessor:} 7... Ne7 8. Ng3 Bg4 9. f3 Bf5 10. Na4 Qc7 11. Bg5 Bg6 12. f4 Nd7 13. Bxe7 Bxe7 14. cxd5 {1-0 (35) Patricio,A-Salvado,S Honra 1998}) 8. Ng3 $14 {[%emt 0:04:09]} Bg6 {[%emt 0:00:48] White is slightly better.} 9. c5 {[%emt 0:06:14]} Qd8 {[%emt 0:02:12]} 10. Bd3 {[%emt 0:12:42]} (10. b4 $14) 10... Bxd3 $11 {[%emt 0:05:07]} 11. Qxd3 {[%emt 0:00:12]} Be7 {[%emt 0:01:14]} 12. Nce2 {[%emt 0:01:41]} Nf8 {[%emt 0:05:10][%cal Bd7f8,Bf8g6,Bg6h4][%mdl 32]} 13. Qb3 {[%emt 0:13:56]} ({White should play} 13. b4 $11) 13... Rb8 {[%emt 0:03:08]} ({Better is} 13... b6 $1 $15) 14. Qa4 {[%emt 0:04:57]} a6 {[%emt 0:01:45]} 15. Bd2 {[%emt 0:01:27]} Ng6 {[%emt 0:05:26]} (15... Bxh4 {seems wilder.} 16. Ba5 Qg5 17. Nf1 Qg4) 16. O-O-O {[%emt 0:01:59]} Bxh4 {[%emt 0:05:35]} 17. f4 {[%emt 0:05:31]} N8e7 {[%emt 0:00:20] Prevents f5.} 18. f5 {[%emt 0:01:50]} (18. Nf1 $14) 18... exf5 {[%emt 0:06:22]} 19. Rxh4 {[%emt 0:12:03]} Nxh4 $17 {[%emt 0:00:03]} 20. Bg5 {[%emt 0:00:03]} Nhg6 {[%emt 0:03:32] And now ...Qc8 would win.} ({Reject} 20... Nxg2 $6 21. Nxf5 Nxf5 22. Bxd8 Rxd8 23. Qb3 $11) 21. Nxf5 {[%emt 0:00:05] [#]} Qd7 $1 {[%emt 0:00:05]} ({And not} 21... O-O 22. Nf4 Qd7 23. Nxe7+ Nxe7 24. Nxh5 $17) 22. Nd6+ {[%emt 0:05:23]} Kf8 {[%emt 0:00:01]} 23. Rf1 {[%emt 0:00:22]} Kg8 {[%emt 0:01:24]} 24. Rxf7 $2 {[%emt 0:00:26] Now White is beyond hope.} (24. Qd1 $17) 24... Rf8 {[%emt 0:02:46]} 25. Rxf8+ {[%emt 0:00:15]} Nxf8 {[%emt 0:00:35]} 26. Qb3 {[%emt 0:00:44]} Neg6 {[%emt 0:01:33]} 27. Be3 {[%emt 0:05:44]} h4 {[%emt 0:00:16] [#] White must now prevent ...h3.} 28. Qxb7 {[%emt 0:01:17]} (28. Ng1 $17) 28... Qxb7 $19 {[%emt 0:00:34]} 29. Nxb7 {[%emt 0:00:02]} Ne6 {[%emt 0:01:05] Prevents Nd8.} 30. Kd2 {[%emt 0:00:32]} (30. Nd6 $142) 30... Ne7 {[%emt 0:00:41]} 31. Nf4 {[%emt 0:01:11]} Nxf4 {[%emt 0:00:43]} 32. Bxf4 {[%emt 0:00:01][%mdl 4096] Endgame KRN-KBN} Kf7 {[%emt 0:00:12]} 33. Bg5 {[%emt 0:00:04]} Nf5 {[%emt 0:00:43] Black is clearly winning.} 34. Na5 {[%emt 0:02:06]} Nxd4 {[%emt 0:00:56]} 35. Be3 {[%emt 0:01:38]} Nf5 {[%emt 0:00:13] aiming for ...Rb8.} ({Wrong is} 35... h3 $2 36. gxh3 Nf3+ 37. Ke2 Nxe5 38. Bd4 $19) 36. Bf2 {[%emt 0:00:17]} Rh6 {[%emt 0:00:46]} 37. b4 {[%emt 0:00:09]} g5 {[%emt 0:00:19][%cal Bg7g5,Bg5g4][%mdl 32] Hoping for ...g4.} 38. a4 {[%emt 0:00:10]} g4 {[%emt 0:00:14] ...h3 is the strong threat.} 39. Nxc6 {[%emt 0:00:59]} Rxc6 {[%emt 0:00:57] Weighted Error Value: White=0.60/Black=0.16 (very precise)} 0-1